bitfinex/quotes_SOLUSD_20220114
["timestamp","ask_amount","ask_price","bid_price","bid_amount"]
[1642134061062,12.7884,148.62,148.53,36.22768002]
[1642134061262,14.7134098,148.62,148.53,42.22768002]
[1642134061665,1.9250098,148.62,148.53,42.22768002]
[1642134061862,1.9250098,148.62,148.54,9.78]
[1642134062061,1.9250098,148.62,148.57,10.0936]
[1642134062266,26.6380098,148.64,148.55,24.8544]
[1642134062465,26.8880098,148.64,148.55,31.1044]
[1642134062666,26.8880098,148.64,148.55,33.7954]
[1642134063094,2.691,148.63,148.55,31.1044]
[1642134063295,2.691,148.63,148.55,43.03458002]
[1642134064901,2.941,148.63,148.55,43.03458002]
[1642134065898,13.0361,148.63,148.55,43.03458002]
[1642134066302,13.0361,148.63,148.55,32.93988002]
[1642134066501,13.0361,148.63,148.55,32.68988002]
[1642134066702,13.0361,148.63,148.55,7.83548002]
[1642134066901,67.67,148.62,148.55,7.83548002]
[1642134067104,67.67,148.62,148.55,1.83548002]
[1642134067105,10.0974,148.6,148.55,1.83548002]
[1642134067306,2.692,148.59,148.55,1.83548002]
[1642134067503,2.942,148.59,148.54,1.83548002]
[1642134068102,10.0997,148.57,148.54,1.83548002]
[1642134068605,10.3497,148.57,148.54,1.83548002]
[1642134068801,6.06439994,148.56,148.54,1.83548002]
[1642134069002,6.06439994,148.56,148.51,3.59781074]
[1642134069204,6.06439994,148.56,148.5,25.08428002]
[1642134069403,6.06439994,148.56,148.5,31.33428002]
[1642134070507,6.06439994,148.56,148.51,1.83548002]
[1642134070903,6.06439994,148.56,148.51,2.08548002]
[1642134074508,6.06439994,148.56,148.51,12.18318002]
[1642134075712,6.06439994,148.56,148.51,2.08548002]
[1642134077710,6.06439994,148.56,148.51,1.83548002]
[1642134077913,6.06439994,148.56,148.51,7.83548002]
[1642134079212,6.06439994,148.56,148.51,18.18318002]
[1642134079412,2.692,148.58,148.51,18.18318002]
[1642134079614,0.25,148.58,148.51,18.18318002]
[1642134079815,0.25,148.58,148.52,24.1977]
[1642134080012,0.25,148.58,148.52,30.1977]
[1642134081112,2.692,148.57,148.52,30.1977]
[1642134081315,2.692,148.58,148.52,30.1977]
[1642134081557,0.25,148.57,148.52,30.1977]
[1642134082514,2.942,148.58,148.52,30.1977]
[1642134082714,0.25,148.58,148.52,30.1977]
[1642134083115,0.25,148.59,148.52,30.1977]
[1642134083315,2.692,148.6,148.52,41.91796601]
[1642134083521,1.9250098,148.61,148.53,2.692]
[1642134083717,1.9250098,148.61,148.54,22.8464]
[1642134083917,1.9250098,148.61,148.54,51.72315251]
[1642134084122,1.9250098,148.61,148.54,57.97315251]
[1642134084316,2.692,148.61,148.54,57.97315251]
[1642134084516,2.942,148.61,148.54,57.97315251]
[1642134085017,2.942,148.61,148.54,68.06895251]
[1642134086019,0.25,148.61,148.54,68.06895251]
[1642134086518,10.0965,148.61,148.54,57.97315251]
[1642134086921,10.3465,148.61,148.54,57.97315251]
[1642134087322,10.3465,148.61,148.54,29.0964]
[1642134089721,10.3465,148.61,148.54,24.68188002]
[1642134090826,10.3465,148.61,148.54,22.8464]
[1642134091024,2.692,148.6,148.54,22.8464]
[1642134091226,12.7893,148.6,148.54,22.8464]
[1642134091426,13.0393,148.6,148.54,22.8464]
[1642134091825,10.3473,148.6,148.54,22.8464]
[1642134100572,4.6170098,148.61,148.54,23.0964]
[1642134100770,1.9250098,148.61,148.54,29.0964]
[1642134100970,2.1750098,148.61,148.54,29.0964]
[1642134101171,1.9250098,148.61,148.54,29.0964]
[1642134101371,1.9250098,148.62,148.54,31.04666601]
[1642134101573,1.9250098,148.62,148.54,40.82666601]
[1642134101871,1.9250098,148.62,148.54,50.92236601]
[1642134102070,15.86667564,148.68,148.56,23.45495361]
[1642134102071,1.9250098,148.64,148.56,23.45495361]
[1642134102270,1.9250098,148.64,148.57,23.882]
[1642134102472,1.9250098,148.64,148.57,32.08226601]
[1642134102671,1.9250098,148.64,148.59,10.0906]
[1642134103072,1.9250098,148.64,148.59,16.3406]
[1642134103475,4.6160098,148.67,148.59,16.3406]
[1642134104477,1.9250098,148.66,148.59,16.3406]
[1642134104875,1.9250098,148.66,148.59,6.25]
[1642134104876,2.1750098,148.66,148.59,6.25]
[1642134105078,2.1750098,148.66,148.59,0.25]
[1642134105277,2.1750098,148.66,148.57,38.50178002]
[1642134105480,2.1750098,148.66,148.57,34.40848002]
[1642134105680,2.691,148.65,148.57,31.71748002]
[1642134106083,2.941,148.65,148.57,29.882]
[1642134106686,10.0947,148.64,148.57,29.882]
[1642134106883,2.691,148.63,148.57,29.882]
[1642134107088,2.941,148.63,148.57,29.882]
[1642134107684,2.941,148.63,148.57,39.9755]
[1642134109028,2.941,148.63,148.57,40.2255]
[1642134109231,0.25,148.63,148.57,40.2255]
[1642134109529,4.8660098,148.64,148.57,40.2255]
[1642134109730,2.1750098,148.64,148.57,40.2255]
[1642134111561,2.1750098,148.64,148.57,40.4855]
[1642134112136,1.9250098,148.64,148.57,40.4855]
[1642134112935,1.9250098,148.64,148.59,31.10367378]
[1642134113133,1.9250098,148.65,148.6,2.691]
[1642134113335,1.9250098,148.65,148.6,23.9565]
[1642134113633,1.9250098,148.65,148.6,30.2065]
[1642134114239,1.9250098,148.66,148.6,30.2065]
[1642134114637,2.1750098,148.66,148.6,40.2981]
[1642134114836,0.25,148.66,148.6,40.2981]
[1642134115037,4.6160098,148.67,148.6,40.2981]
[1642134115235,1.9250098,148.67,148.6,40.2981]
[1642134115436,1.9250098,148.67,148.6,42.9891]
[1642134117640,26.0424098,148.68,148.6,42.9891]
[1642134117840,26.2924098,148.68,148.6,42.9891]
[1642134126778,26.2924098,148.68,148.6,42.7391]
[1642134126980,26.2924098,148.68,148.6,36.7391]
[1642134127787,2.691,148.67,148.6,34.0481]
[1642134127988,2.941,148.67,148.6,34.0481]
[1642134128186,4.8660098,148.67,148.6,34.2981]
[1642134131190,4.8660098,148.67,148.6,40.2981]
[1642134131588,4.6160098,148.67,148.6,40.2981]
[1642134131790,4.8660098,148.67,148.6,40.2981]
[1642134131991,2.1750098,148.67,148.6,40.2981]
[1642134132992,1.9250098,148.67,148.6,40.2981]
[1642134133794,2.1750098,148.67,148.6,40.2981]
[1642134134499,1.9250098,148.66,148.6,40.2981]
[1642134136202,1.9250098,148.67,148.6,40.2981]
[1642134136602,2.1750098,148.67,148.6,40.2981]
[1642134141031,2.1750098,148.67,148.6,24.2065]
[1642134141433,2.1750098,148.67,148.6,30.2065]
[1642134141632,12.2675098,148.67,148.6,24.2065]
[1642134143034,12.2675098,148.67,148.6,30.2065]
[1642134143232,2.1750098,148.67,148.6,30.2065]
[1642134143831,2.1750098,148.67,148.6,24.2065]
[1642134144032,2.1750098,148.67,148.6,30.2065]
[1642134145232,2.1750098,148.67,148.6,40.2981]
[1642134148241,1.9250098,148.67,148.6,40.2981]
[1642134149341,26.0424098,148.68,148.6,40.2981]
[1642134149543,26.2924098,148.68,148.6,40.2981]
[1642134151745,1.9250098,148.67,148.6,40.2981]
[1642134151946,2.1750098,148.67,148.6,40.2981]
[1642134156753,4.8660098,148.67,148.6,40.2981]
[1642134157552,4.6160098,148.67,148.6,40.2981]
[1642134157952,1.9250098,148.67,148.6,40.2981]
[1642134158553,1.9250098,148.67,148.61,9.78]
[1642134158854,1.9250098,148.68,148.64,10.087]
[1642134159056,1.9250098,148.68,148.64,16.337]
[1642134159954,1.9250098,148.7,148.64,16.337]
[1642134160254,1.9250098,148.7,148.64,19.027]
[1642134160654,1.9250098,148.7,148.64,44.004]
[1642134162054,1.9250098,148.71,148.64,44.004]
[1642134163157,1.9250098,148.7,148.64,44.004]
[1642134163560,2.69,148.73,148.65,55.0]
[1642134163758,2.69,148.73,148.68,10.0862]
[1642134163960,2.69,148.73,148.69,26.04951233]
[1642134164360,2.69,148.73,148.69,32.29951233]
[1642134165159,2.69,148.73,148.7,10.0843]
[1642134165562,2.69,148.73,148.7,16.3343]
[1642134166159,2.73,148.73,148.7,16.3343]
[1642134166762,0.04,148.73,148.7,16.3343]
[1642134167061,0.04,148.73,148.7,39.3359]
[1642134168662,2.689,148.78,148.7,39.3359]
[1642134168961,510.21193957,148.79,148.7,52.0649]
[1642134169162,507.02293957,148.79,148.71,1.69026601]
[1642134169365,507.02293957,148.79,148.72,2.689]
[1642134169564,507.02293957,148.79,148.75,10.0807]
[1642134170062,507.02293957,148.79,148.75,10.3307]
[1642134170364,3.84958376,148.79,148.75,10.3307]
[1642134170562,3.84958376,148.79,148.75,6.25]
[1642134170964,3.84958376,148.79,148.75,0.25]
[1642134171163,3.84958376,148.79,148.75,6.25]
[1642134171596,2.688,148.81,148.75,0.25]
[1642134171999,2.938,148.81,148.75,0.25]
[1642134172196,2.938,148.81,148.73,16.3324]
[1642134176301,8.938,148.81,148.73,16.3324]
[1642134176502,19.0213,148.81,148.73,16.3324]
[1642134176699,79.14026601,148.8,148.71,2.688]
[1642134176900,2.688,148.79,148.66,23.4858]
[1642134177102,67.67,148.77,148.66,29.4858]
[1642134177301,12.469,148.76,148.66,23.4858]
[1642134177504,14.40926601,148.76,148.66,23.4858]
[1642134177801,10.0876,148.75,148.66,23.4858]
[1642134178002,2.689,148.74,148.66,23.7358]
[1642134178202,2.689,148.74,148.66,29.4858]
[1642134178403,2.939,148.74,148.62,27.33241074]
[1642134178603,18.64,148.74,148.62,27.33241074]
[1642134179205,18.64,148.74,148.63,29.95106818]
[1642134179407,28.7281,148.74,148.63,42.73046818]
[1642134180904,28.7281,148.74,148.63,48.98046818]
[1642134181404,22.8071,148.74,148.63,48.98046818]
[1642134182209,13.0271,148.74,148.63,48.98046818]
[1642134182409,2.939,148.74,148.63,50.67073419]
[1642134182608,2.939,148.74,148.63,74.69423419]
[1642134182836,2.939,148.74,148.63,73.00396818]
[1642134183006,2.939,148.74,148.63,74.69423419]
[1642134183408,2.689,148.74,148.63,74.95423419]
[1642134183611,2.689,148.74,148.63,74.69423419]
[1642134183808,2.69,148.75,148.63,74.95423419]
[1642134184008,2.69,148.75,148.64,9.78]
[1642134184209,2.69,148.75,148.69,10.0848]
[1642134184414,2.69,148.75,148.7,24.34293405]
[1642134184912,3.84958376,148.77,148.7,30.59293405]
[1642134185110,3.84958376,148.77,148.7,24.59293405]
[1642134185311,4.09958376,148.77,148.7,24.59293405]
[1642134185812,3.84958376,148.77,148.7,24.59293405]
[1642134186209,7.7071484,148.78,148.7,34.67773405]
[1642134186711,7.7071484,148.78,148.7,40.67773405]
[1642134187211,16.62338376,148.79,148.7,40.67773405]
[1642134188211,15.12338376,148.79,148.7,40.67773405]
[1642134188412,15.37338376,148.79,148.7,40.67773405]
[1642134189914,2.939,148.79,148.7,40.67773405]
[1642134190345,27.41888376,148.8,148.73,10.0822]
[1642134190518,3.84958376,148.8,148.73,16.3322]
[1642134190717,0.25,148.8,148.73,16.3322]
[1642134192124,27.23258376,148.81,148.73,16.3322]
[1642134192325,2.688,148.8,148.73,16.3322]
[1642134192528,2.938,148.8,148.73,16.3322]
[1642134203659,2.438,148.8,148.73,16.3322]
[1642134203862,0.25,148.8,148.73,10.3322]
[1642134204060,26.071,148.81,148.73,10.3322]
[1642134204261,26.071,148.81,148.73,16.3322]
[1642134206062,36.1537,148.81,148.73,16.3322]
[1642134206265,36.1537,148.81,148.73,10.3322]
[1642134207566,36.1537,148.81,148.73,0.25]
[1642134207766,127.5841,148.81,148.71,31.6858]
[1642134208771,59.9141,148.81,148.71,31.6858]
[1642134209167,59.9141,148.81,148.72,10.083]
[1642134209568,127.5841,148.81,148.72,10.333]
[1642134209970,127.5841,148.81,148.71,31.4358]
[1642134209971,59.9141,148.81,148.71,25.4358]
[1642134210168,59.9141,148.81,148.71,22.7478]
[1642134210969,59.9141,148.81,148.71,38.8315]
[1642134211171,59.9141,148.81,148.71,41.5195]
[1642134211370,59.9141,148.81,148.71,41.7695]
[1642134211571,49.8314,148.81,148.71,41.7695]
[1642134211970,49.5814,148.81,148.71,41.7695]
[1642134212172,49.8314,148.81,148.71,41.7695]
[1642134213175,59.914,148.81,148.71,41.7695]
[1642134213771,127.584,148.81,148.71,41.7695]
[1642134222780,127.49,148.81,148.71,41.7695]
[1642134222981,59.82,148.81,148.71,41.7695]
[1642134225020,2.688,148.81,148.72,9.78]
[1642134225214,1.6349344,148.82,148.77,10.0791]
[1642134225415,3.44e-05,148.82,148.78,2.688]
[1642134225615,367.45026354,148.83,148.79,9.78]
[1642134225816,5.77437564,148.86,148.8,2.687]
[1642134226115,5.77437564,148.86,148.8,8.937]
[1642134226316,5.27437564,148.86,148.8,9.197]
[1642134226516,5.27437564,148.9,148.81,28.92200296]
[1642134226715,5.27437564,148.9,148.82,12.467]
[1642134226915,5.27437564,148.9,148.82,9.78]
[1642134227114,5.27437564,148.9,148.82,16.03]
[1642134227917,2.688,148.91,148.82,16.03]
[1642134228116,12.7612,148.93,148.84,10.0753]
[1642134228518,18.7612,148.93,148.84,16.3253]
[1642134228717,8.686,148.93,148.84,16.3253]
[1642134229617,18.7612,148.93,148.84,16.3253]
[1642134229817,19.0112,148.93,148.84,16.3253]
[1642134230019,3.85153234,148.92,148.84,16.3253]
[1642134230218,2.686,148.91,148.84,16.3253]
[1642134230622,2.936,148.91,148.84,16.3253]
[1642134231620,2.936,148.91,148.85,9.78]
[1642134231824,0.25,148.91,148.86,10.0738]
[1642134232024,0.04,148.91,148.86,10.0738]
[1642134232224,0.04,148.91,148.86,16.0738]
[1642134232425,0.04,148.91,148.86,6.0]
[1642134232623,0.04,148.91,148.85,9.78]
[1642134233629,10.1165,148.91,148.85,9.78]
[1642134234030,10.3665,148.91,148.85,9.78]
[1642134236835,10.4065,148.91,148.84,0.25]
[1642134237034,10.4465,148.91,148.83,30.4479]
[1642134237436,10.1965,148.91,148.85,0.02]
[1642134238735,10.4465,148.91,148.85,0.02]
[1642134239238,0.37,148.91,148.85,0.04]
[1642134239442,0.12,148.91,148.85,0.04]
[1642134240640,2.806,148.91,148.85,0.04]
[1642134241039,3.056,148.91,148.85,0.04]
[1642134241245,0.37,148.91,148.85,0.04]
[1642134241645,10.4464,148.91,148.85,0.04]
[1642134242742,0.37,148.91,148.85,0.04]
[1642134242968,0.12,148.91,148.85,0.04]
[1642134244274,0.12,148.91,148.85,10.1147]
[1642134244470,0.12,148.91,148.86,9.78]
[1642134244673,0.12,148.91,148.87,26.15831929]
[1642134244877,0.12,148.91,148.87,50.87371929]
[1642134245068,0.12,148.91,148.87,57.12371929]
[1642134245469,0.12,148.91,148.87,66.90371929]
[1642134246170,0.12,148.91,148.88,10.0727]
[1642134246571,0.12,148.91,148.88,26.1027]
[1642134250676,0.12,148.91,148.88,28.7887]
[1642134252277,0.12,148.91,148.88,28.8087]
[1642134252479,0.12,148.91,148.88,28.8287]
[1642134252677,0.12,148.91,148.88,28.8487]
[1642134254379,0.12,148.91,148.88,26.1627]
[1642134256184,0.12,148.91,148.89,24.6366]
[1642134256382,0.12,148.91,148.9,55.3498]
[1642134256683,0.12,148.91,148.9,61.5998]
[1642134259587,2.686,148.99,148.9,68.9668]
[1642134259788,0.33718327,149.01,148.91,2.685]
[1642134259992,0.33718327,149.01,148.95,10.0677]
[1642134260192,0.33718327,149.01,148.95,38.57748565]
[1642134260398,0.33718327,149.01,148.95,44.82748565]
[1642134261088,3.85194348,149.0,148.95,16.3177]
[1642134262290,0.33718327,149.01,148.95,16.3377]
[1642134262693,0.33718327,149.01,148.95,16.3777]
[1642134262889,0.33718327,149.01,148.95,6.1]
[1642134263092,0.33718327,149.01,148.95,0.1]
[1642134263291,2.684,149.0,148.95,0.1]
[1642134263690,70.354,149.0,148.95,0.1]
[1642134263891,70.604,149.0,148.95,0.1]
[1642134265092,3.85241544,148.99,148.95,0.1]
[1642134265296,80.4262,148.98,148.95,0.1]
[1642134265491,6.06439994,148.97,148.95,0.1]
[1642134265693,25.685,148.96,148.95,0.1]
[1642134266992,23.0,148.96,148.95,0.1]
[1642134267192,33.0726,148.96,148.95,0.1]
[1642134268393,23.0,148.96,148.95,0.1]
[1642134269195,90.67,148.96,148.95,0.1]
[1642134270196,16.13619994,148.97,148.95,0.1]
[1642134270398,16.38619994,148.97,148.95,0.1]
[1642134271296,33.85283842,148.96,148.95,0.1]
[1642134272303,3.85283842,148.96,148.95,0.1]
[1642134274098,40.88639994,148.97,148.95,0.1]
[1642134275701,6.06439994,148.97,148.95,0.1]
[1642134275901,0.33718327,149.01,148.95,7.79]
[1642134276101,0.33718327,149.01,148.96,22.90927147]
[1642134276504,0.33718327,149.01,148.96,29.15927147]
[1642134276701,0.33718327,149.01,148.97,10.0655]
[1642134277102,0.33718327,149.01,148.97,16.0655]
[1642134277502,2.684,149.0,148.97,6.0]
[1642134277704,0.33718327,149.01,148.96,0.04]
[1642134277907,2.934,149.0,148.96,0.08]
[1642134278106,2.934,149.0,148.96,0.1]
[1642134278706,23.2375,148.99,148.96,0.1]
[1642134278904,2.685,148.98,148.96,0.1]
[1642134279305,2.935,148.98,148.96,0.1]
[1642134279510,6.06439994,148.97,148.96,0.1]
[1642134279707,73.73439994,148.97,148.96,0.1]
[1642134279906,6.31439994,148.97,148.96,0.1]
[1642134280709,6.06439994,148.97,148.96,0.1]
[1642134281507,6.31439994,148.97,148.96,0.1]
[1642134282910,6.06439994,148.97,148.96,0.1]
[1642134284838,7.99036544,148.97,148.96,0.1]
[1642134287139,6.06439994,148.97,148.96,0.1]
[1642134288942,7.99020751,148.97,148.96,0.1]
[1642134290343,75.66020751,148.97,148.96,0.1]
[1642134290949,75.91020751,148.97,148.96,0.1]
[1642134291143,78.59520751,148.97,148.96,0.1]
[1642134291849,76.66939994,148.97,148.96,0.1]
[1642134292046,114.10349825,148.97,148.96,0.1]
[1642134293449,0.02,148.96,148.86,22.5617]
[1642134293646,10.0752,148.92,148.85,2.685]
[1642134293946,10.3252,148.92,148.85,4.44123328]
[1642134294348,10.0752,148.92,148.86,27.07115351]
[1642134294548,10.3252,148.92,148.86,27.07115351]
[1642134294949,79.92173144,148.92,148.86,27.07115351]
[1642134295549,12.25173144,148.92,148.86,27.07115351]
[1642134295750,12.00173144,148.92,148.86,27.07115351]
[1642134295955,1.92653144,148.92,148.86,27.07115351]
[1642134296152,1.92653144,148.91,148.86,27.07115351]
[1642134297256,1.92653144,148.92,148.86,27.07115351]
[1642134298057,1.92653144,148.92,148.86,27.32115351]
[1642134298956,1.92653144,148.92,148.86,43.10115351]
[1642134299157,1.92653144,148.93,148.87,2.686]
[1642134299560,1.92653144,148.93,148.87,2.936]
[1642134299960,12.00093144,148.94,148.87,2.936]
[1642134300162,12.00093144,148.94,148.87,0.25]
[1642134300560,12.00093144,148.94,148.86,45.78715351]
[1642134304798,12.25093144,148.94,148.86,35.75715351]
[1642134304997,14.93693144,148.94,148.86,27.07115351]
[1642134306495,14.68693144,148.94,148.86,27.07115351]
[1642134306995,12.00193144,148.92,148.86,27.07115351]
[1642134307197,12.00193144,148.92,148.86,27.32115351]
[1642134308197,1.92653144,148.92,148.86,27.32115351]
[1642134308698,1.92653144,148.92,148.86,27.07115351]
[1642134308902,1.92653144,148.93,148.86,27.07115351]
[1642134309097,1.92653144,148.93,148.86,51.58085351]
[1642134310000,1.92653144,148.93,148.86,51.83085351]
[1642134310201,12.00123144,148.93,148.86,51.83085351]
[1642134311803,12.00123144,148.93,148.86,54.51685351]
[1642134312404,12.00123144,148.93,148.86,51.83085351]
[1642134314006,12.00123144,148.93,148.86,57.83085351]
[1642134314811,12.25123144,148.93,148.86,57.58085351]
[1642134315406,12.25123144,148.93,148.86,30.5097]
[1642134315605,10.0764,148.91,148.86,30.5097]
[1642134316006,10.0764,148.91,148.86,24.5097]
[1642134317007,1.92653144,148.91,148.86,24.5097]
[1642134317609,1.92653144,148.91,148.86,24.7597]
[1642134318009,1.92653144,148.93,148.86,40.8336]
[1642134319012,1.92653144,148.95,148.86,50.6136]
[1642134320212,1.92653144,148.95,148.87,2.686]
[1642134320614,1.92653144,148.95,148.88,10.0723]
[1642134320812,1.92653144,148.95,148.89,26.02141622]
[1642134321023,1.92653144,148.95,148.89,32.27141622]
[1642134321216,1.92653144,148.95,148.9,9.78]
[1642134321513,1.92653144,148.95,148.9,18.716]
[1642134321921,1.92653144,148.96,148.9,18.716]
[1642134322113,1.92653144,148.96,148.92,10.0686]
[1642134322317,1.92653144,148.96,148.93,2.685]
[1642134322514,1.92653144,148.96,148.93,8.935]
[1642134322913,5.77983054,148.99,148.93,8.935]
[1642134323115,1.92653144,148.99,148.93,8.935]
[1642134324014,1.92653144,149.0,148.93,8.935]
[1642134324225,1.92653144,149.0,148.94,10.0679]
[1642134324415,1.92653144,149.0,148.95,30.59634322]
[1642134324817,1.92653144,149.0,148.95,36.84634322]
[1642134325016,0.33718327,149.01,148.95,36.84634322]
[1642134325418,0.33718327,149.01,148.95,6.25]
[1642134325619,2.684,149.0,148.94,6.0]
[1642134326020,4.37426601,149.0,148.93,8.685]
[1642134326218,72.04426601,149.0,148.91,29.7702]
[1642134326418,72.04426601,149.0,148.92,31.63900554]
[1642134326924,72.04426601,149.0,148.92,37.63900554]
[1642134327120,72.29426601,149.0,148.92,37.63900554]
[1642134327322,10.0708,148.99,148.92,37.63900554]
[1642134327719,10.3208,148.99,148.92,37.63900554]
[1642134329525,67.67,148.98,148.92,37.63900554]
[1642134329724,70.355,148.98,148.92,37.63900554]
[1642134329924,80.4267,148.98,148.92,37.63900554]
[1642134331329,77.7417,148.98,148.92,37.63900554]
[1642134332331,77.7417,148.98,148.92,6.0]
[1642134332530,77.7417,148.98,148.92,0.25]
[1642134332730,10.0717,148.98,148.92,0.25]
[1642134332937,4.61153144,148.99,148.92,0.25]
[1642134333130,1.92653144,149.0,148.92,2.935]
[1642134333332,1.92653144,149.0,148.93,31.00536528]
[1642134333530,1.92653144,149.0,148.93,37.25536528]
[1642134334130,10.071,148.99,148.93,37.25536528]
[1642134334530,10.071,148.99,148.93,37.00536528]
[1642134334731,77.741,148.99,148.93,6.0]
[1642134334937,77.741,148.99,148.92,31.5041]
[1642134335532,77.991,148.99,148.92,31.5041]
[1642134336032,79.91753144,148.99,148.92,31.5041]
[1642134336432,2.685,148.98,148.92,28.8191]
[1642134336657,79.91753144,148.99,148.92,28.8191]
[1642134336858,79.91753144,148.99,148.92,22.8191]
[1642134337158,79.91753144,148.99,148.92,28.8191]
[1642134337358,79.66753144,148.99,148.92,22.8191]
[1642134337561,79.66753144,148.99,148.92,28.8191]
[1642134337965,79.66753144,148.99,148.92,29.0691]
[1642134338358,79.66753144,148.99,148.92,0.25]
[1642134338565,79.91753144,148.99,148.9,18.715]
[1642134338759,79.91753144,148.99,148.9,16.03]
[1642134339158,79.91753144,148.99,148.9,15.78]
[1642134339358,79.91753144,148.99,148.9,6.0]
[1642134339560,2.685,148.98,148.89,28.86188278]
[1642134339764,77.7427,148.97,148.89,29.11188278]
[1642134339959,77.9927,148.97,148.89,29.11188278]
[1642134341160,77.9927,148.97,148.89,39.18378278]
[1642134341563,77.9927,148.97,148.89,29.11188278]
[1642134341864,10.3227,148.97,148.89,29.11188278]
[1642134342964,77.9927,148.97,148.89,29.11188278]
[1642134344266,77.9927,148.97,148.89,6.25]
[1642134344469,77.9927,148.97,148.87,2.685]
[1642134344666,26.2508,148.96,148.86,24.4044]
[1642134344867,10.0757,148.92,148.86,24.6544]
[1642134349375,10.0757,148.92,148.86,30.6544]
[1642134349572,10.0757,148.92,148.86,24.6544]
[1642134349974,10.0757,148.92,148.86,30.6544]
[1642134350485,10.0757,148.92,148.86,24.6544]
[1642134351979,10.0757,148.92,148.86,30.6544]
[1642134352180,10.0757,148.92,148.86,24.6544]
[1642134356113,10.075,148.94,148.86,24.6544]
[1642134356613,12.00153144,148.94,148.87,2.686]
[1642134356812,12.00153144,148.94,148.88,28.94837461]
[1642134357014,12.00153144,148.94,148.88,29.19837461]
[1642134357714,10.075,148.94,148.88,29.19837461]
[1642134357915,10.075,148.94,148.88,28.94837461]
[1642134360621,10.075,148.94,148.86,27.0904]
[1642134360821,10.075,148.94,148.87,0.25]
[1642134361422,12.00153144,148.94,148.87,0.25]
[1642134362019,12.00153144,148.94,148.86,65.33635136]
[1642134363422,12.00153144,148.94,148.86,75.41035136]
[1642134363825,1.92653144,148.94,148.86,75.41035136]
[1642134365322,12.00033144,148.95,148.86,77.16658464]
[1642134365923,1.92653144,148.95,148.86,77.16658464]
[1642134366323,1.92653144,148.95,148.86,88.63685065]
[1642134367928,1.92653144,148.97,148.9,10.0713]
[1642134368326,1.92653144,148.97,148.9,16.3213]
[1642134370829,4.61153144,148.98,148.9,16.3213]
[1642134371027,1.92653144,148.98,148.91,2.685]
[1642134371228,1.92653144,148.98,148.91,26.638]
[1642134371428,1.92653144,148.98,148.91,26.888]
[1642134372731,1.92653144,148.98,148.91,36.9585]
[1642134373032,1.92653144,148.98,148.91,42.9585]
[1642134373229,1.92653144,148.98,148.91,40.2735]
[1642134374037,1.92653144,148.98,148.92,2.685]
[1642134374432,1.92653144,148.98,148.92,8.685]
[1642134374731,1.92653144,148.98,148.92,2.685]
[1642134375831,1.92653144,148.98,148.92,2.935]
[1642134376034,1.92653144,148.97,148.92,31.85123844]
[1642134376234,1.92653144,148.97,148.92,50.60613844]
[1642134377030,1.92653144,148.97,148.92,19.0049]
[1642134377231,1.92653144,148.97,148.92,8.935]
[1642134377431,1.92653144,148.98,148.92,8.935]
[1642134377732,1.92653144,148.98,148.92,6.25]
[1642134377934,1.92653144,148.98,148.92,0.25]
[1642134378135,1.92653144,148.98,148.91,64.61718276]
[1642134380132,1.92653144,148.98,148.91,40.2736]
[1642134384633,1.92653144,148.98,148.91,40.0236]
[1642134386038,1.92653144,148.98,148.91,40.2736]
[1642134386840,1.92653144,148.98,148.91,50.0536]
[1642134387941,1.92653144,148.98,148.92,2.685]
[1642134388145,1.92653144,148.98,148.92,12.465]
[1642134388346,1.92653144,149.0,148.92,18.715]
[1642134389191,1.92653144,149.0,148.93,22.6989]
[1642134389582,1.92653144,148.99,148.93,28.9489]
[1642134394984,1.92653144,148.99,148.93,28.6989]
[1642134396391,1.92653144,148.99,148.93,28.9489]